bitfinex/quotes_ETHUSD_20241006
["timestamp","ask_amount","ask_price","bid_price","bid_amount"]
[1728224212107,3.28435,2435.8,2435.6,35.0]
[1728224212979,4.10367,2435.7,2435.6,35.0]
[1728224217708,8.68524522,2435.7,2435.6,35.0]
[1728224224985,7.86604522,2435.7,2435.6,35.0]
[1728224225186,6.28447,2435.7,2435.6,35.0]
[1728224228240,3.28435,2435.8,2435.6,39.302]
[1728224228619,3.28435,2435.8,2435.6,4.302]
[1728224228814,3.28435,2435.8,2435.6,0.802]
[1728224229013,3.28447,2435.7,2435.6,0.802]
[1728224229305,3.28435,2435.8,2435.6,0.802]
[1728224229503,6.56877,2435.8,2435.7,35.0]
[1728224230846,9.56877,2435.8,2435.7,35.0]
[1728224231834,10.36277,2435.8,2435.7,35.0]
[1728224241818,3.0,2435.3,2434.7,0.8109]
[1728224242018,3.28529,2435.1,2434.7,0.8109]
[1728224242231,3.28529,2435.1,2435.0,35.0]
[1728224242451,3.28529,2435.1,2435.0,35.8109]
[1728224242672,3.28517,2435.2,2435.0,39.08693248]
[1728224243017,3.28528,2435.1,2435.0,4.08693248]
[1728224243347,3.28528,2435.1,2435.0,0.8109]
[1728224243515,3.28528,2435.1,2435.0,35.8109]
[1728224244135,6.57018,2435.3,2435.0,35.8109]
[1728224244335,3.28503,2435.3,2435.1,0.8109]
[1728224244519,6.28503,2435.3,2435.2,0.8109]
[1728224244863,3.2849,2435.4,2435.2,0.8109]
[1728224245103,3.2849,2435.4,2435.3,35.0]
[1728224245590,6.2849,2435.4,2435.3,35.0]
[1728224245799,7.0735,2435.4,2435.3,35.0]
[1728224246869,6.2849,2435.4,2435.3,35.0]
[1728224252803,7.0518,2435.4,2435.3,35.0]
[1728224253890,7.60819666,2435.4,2435.3,35.0]
[1728224254062,33.09783166,2435.4,2435.3,35.0]
[1728224254590,29.38380066,2435.4,2435.3,35.0]
[1728224255162,11.12868166,2435.4,2435.3,35.0]
[1728224255362,7.0518,2435.4,2435.3,35.0]
[1728224256695,6.2849,2435.4,2435.3,35.0]
[1728224259023,3.2849,2435.4,2435.3,35.0]
[1728224260199,6.2849,2435.4,2435.3,35.0]
[1728224268889,7.86647522,2435.4,2435.3,35.0]
[1728224270428,7.87454297,2435.4,2435.3,35.0]
[1728224271826,8.67324297,2435.4,2435.3,35.0]
[1728224272030,9.22963963,2435.4,2435.3,35.0]
[1728224272628,13.85599663,2435.4,2435.3,35.0]
[1728224278133,13.84792888,2435.4,2435.3,35.0]
[1728224280265,14.39792888,2435.4,2435.3,35.0]
[1728224281056,11.709957,2435.4,2435.3,35.0]
[1728224281240,8.66517522,2435.4,2435.3,35.0]
[1728224283962,51.14816188,2435.4,2435.3,35.0]
[1728224284161,51.14816188,2435.4,2434.1,2.10108437]
[1728224284162,3.28582,2434.7,2434.6,0.8042]
[1728224284518,3.28582,2434.7,2434.6,35.8042]
[1728224284922,6.28582,2434.7,2434.6,35.8042]
[1728224293682,6.28582,2434.7,2434.6,35.0]
[1728224298983,6.28582,2434.7,2434.6,35.8261]
[1728224299153,3.28582,2434.7,2434.6,39.40871]
[1728224299753,3.28582,2434.7,2434.6,35.8261]
[1728224300792,6.28582,2434.7,2434.6,35.8261]
[1728224301953,7.86739522,2434.7,2434.6,35.8261]
[1728224302759,7.86739522,2434.7,2434.6,35.0]
[1728224309305,6.28636,2434.3,2434.2,0.8261]
[1728224309751,6.28636,2434.3,2434.2,35.8261]
[1728224311351,6.28636,2434.3,2434.2,35.0]
[1728224314346,6.28663,2434.1,2434.0,0.8261]
[1728224315160,6.28663,2434.1,2434.0,35.8261]
[1728224316440,6.28663,2434.1,2434.0,39.08001941]
[1728224317222,3.0,2434.1,2434.0,39.08001941]
[1728224318668,6.28663,2434.1,2434.0,39.08001941]
[1728224322032,3.28651,2434.2,2434.1,0.7795]
[1728224323830,3.28618,2434.5,2434.1,0.7795]
[1728224324059,3.28623,2434.4,2434.3,0.7795]
[1728224324294,3.28623,2434.4,2434.3,35.7795]
[1728224325886,3.28618,2434.5,2434.4,0.7795]
[1728224327957,3.28618,2434.5,2434.4,35.7795]
[1728224328161,3.28618,2434.5,2434.4,39.39141832]
[1728224329161,3.28587,2434.7,2434.4,39.39141832]
[1728224329162,3.28597,2434.6,2434.5,0.7795]
[1728224329358,3.28587,2434.7,2434.5,0.7795]
[1728224329964,3.28587,2434.7,2434.6,35.7795]
[1728224334763,3.2857,2434.8,2434.7,0.7795]
[1728224334964,3.2857,2434.8,2434.7,4.35745]
[1728224335369,3.28561,2434.9,2434.7,4.35745]
[1728224336006,3.28561,2434.9,2434.8,0.7795]
[1728224338494,3.28579,2434.8,2434.6,35.7603]
[1728224338804,3.28579,2434.8,2434.7,2.19936087]
[1728224341219,3.28561,2434.9,2434.7,2.19936087]
[1728224341404,3.28561,2434.9,2434.6,35.7603]
[1728224342009,3.28569,2434.8,2434.6,35.7603]
[1728224342830,3.28569,2434.8,2434.6,0.7603]
[1728224343396,3.28569,2434.8,2434.7,35.0]
[1728224344744,7.86726522,2434.8,2434.7,35.0]
[1728224346626,6.28569,2434.8,2434.7,35.0]
[1728224347459,0.752,2435.3,2434.7,39.2603]
[1728224347619,3.28543,2435.0,2434.7,4.2603]
[1728224347814,3.28543,2435.0,2434.7,0.7603]
[1728224348013,3.28535,2435.1,2434.7,0.7603]
[1728224348222,3.28558,2434.9,2434.7,0.7603]
[1728224348618,3.28558,2434.9,2434.8,35.0]
[1728224351640,3.28558,2434.9,2434.8,34.9]
[1728224368675,3.28536,2435.1,2434.8,37.80897084]
[1728224368969,3.28541,2435.1,2434.8,36.22739562]
[1728224369169,3.28541,2435.1,2434.8,1.32739562]
[1728224369371,3.28541,2435.1,2434.7,0.7603]
[1728224369570,3.28541,2435.1,2435.0,35.0]
[1728224369798,3.25816106,2435.1,2435.0,35.8329]
[1728224384236,6.57043,2435.2,2435.0,35.8329]
[1728224384639,6.57043,2435.2,2435.0,0.8329]
[1728224385114,6.57043,2435.2,2435.1,35.0]
[1728224396045,3.28496,2435.4,2435.2,0.7565]
[1728224396255,3.28501,2435.3,2435.2,0.7565]
[1728224396612,3.28496,2435.4,2435.2,35.7565]
[1728224397037,6.56995,2435.4,2435.2,0.7565]
[1728224397240,3.28496,2435.4,2435.2,0.7565]
[1728224397607,9.56996,2435.4,2435.3,35.0]
[1728224398128,6.28496,2435.4,2435.3,35.0]
[1728224400887,3.0,2435.5,2435.3,35.0]
[1728224401184,3.2847,2435.6,2435.4,2.34997522]
[1728224401478,3.28443,2435.8,2435.4,2.34997522]
[1728224401479,6.56886,2435.8,2435.4,2.34997522]
[1728224401675,3.28443,2435.8,2435.5,35.23499752]
[1728224401889,6.56886,2435.8,2435.5,35.23499752]
[1728224402244,6.56886,2435.8,2435.5,0.23499752]
[1728224402756,6.56886,2435.8,2435.7,35.0]
[1728224405091,9.56886,2435.8,2435.7,35.0]
[1728224406622,10.33556,2435.8,2435.7,35.0]
[1728224418943,9.56886,2435.8,2435.7,35.0]
[1728224420564,6.28443,2435.8,2435.7,35.0]
[1728224426565,6.28443,2435.8,2435.7,35.8078]
[1728224426974,3.0,2435.8,2435.7,35.8078]
[1728224427137,3.28422,2435.9,2435.7,39.38858]
[1728224427632,6.28408,2436.0,2435.7,39.38858]
[1728224428271,6.28408,2436.0,2435.7,4.38858]
[1728224428443,6.28408,2436.0,2435.7,0.8078]
[1728224428777,6.28408,2436.0,2435.9,35.0]
[1728224431095,3.28408,2436.0,2435.9,35.8078]
[1728224431448,3.03408,2436.0,2435.9,35.8078]
[1728224431646,3.03408,2436.0,2435.9,39.38858]
[1728224447633,3.03408,2436.0,2435.9,35.0]
[1728224447798,3.79208,2436.0,2435.9,35.0]
[1728224447998,6.79208,2436.0,2435.9,35.0]
[1728224456089,48.79681759,2436.0,2435.9,35.0]
[1728224457457,45.23880059,2436.0,2435.9,35.0]
[1728224457857,45.78880059,2436.0,2435.9,35.0]
[1728224458574,25.06639159,2436.0,2435.9,35.0]
[1728224460859,9.408531,2436.0,2435.9,35.0]
[1728224461192,3.03408,2436.0,2435.9,35.0]
[1728224461692,3.03408,2436.0,2435.9,38.57669]
[1728224461902,3.28402,2436.1,2435.9,38.57669]
[1728224462258,3.28407,2436.0,2435.9,3.57669]
[1728224462505,3.28407,2436.0,2435.8,1.58157522]
[1728224462797,3.28407,2436.0,2435.9,35.0]
[1728224463801,3.28407,2436.0,2435.9,35.7669]
[1728224465811,3.28402,2436.1,2435.9,35.7669]
[1728224466109,3.28402,2436.1,2436.0,3.73484752]
[1728224466278,3.28353,2436.4,2436.1,0.7669]
[1728224466481,3.28353,2436.4,2436.3,35.0]
[1728224468113,6.28353,2436.4,2436.3,35.0]
[1728224475710,3.28353,2436.4,2436.3,35.0]
[1728224482222,3.28353,2436.4,2436.3,35.7743424]
[1728224482425,3.28353,2436.4,2436.3,36.5904424]
[1728224482614,3.0,2436.7,2436.3,36.5904424]
[1728224482615,6.2832,2436.7,2436.3,36.5904424]
[1728224482818,3.2832,2436.7,2436.4,2.39767522]
[1728224483139,3.28333,2436.6,2436.5,0.31720176]
[1728224483339,3.28333,2436.6,2436.5,35.0]
[1728224493309,3.0,2437.0,2436.6,0.7608]
[1728224493512,3.28282,2437.0,2436.9,1.58157522]
[1728224494112,3.28282,2437.0,2436.9,37.34237522]
[1728224494316,3.28282,2437.0,2436.9,41.07661274]
[1728224495439,3.2826,2437.1,2436.9,39.49503752]
[1728224495746,3.2826,2437.1,2436.9,4.49503752]
[1728224496052,9.56527,2437.1,2437.0,35.0]
[1728224496351,3.0,2437.2,2437.0,35.0]
[1728224496652,3.28258,2437.1,2436.9,2.34237522]
[1728224496863,3.28258,2437.1,2436.9,2.57661274]
[1728224497150,3.0,2437.2,2436.9,2.57661274]
[1728224497151,3.0,2437.2,2437.0,35.0]
[1728224497371,6.28248,2437.2,2437.1,0.7608]
[1728224498013,6.28248,2437.2,2437.1,35.7608]
[1728224502256,6.28248,2437.2,2437.1,35.0]
[1728224518815,3.28248,2437.2,2437.1,35.0]
[1728224518975,3.28232,2437.3,2437.2,0.8244]
[1728224519568,3.28232,2437.3,2437.2,35.8244]
[1728224520369,6.28232,2437.3,2437.2,35.8244]
[1728224520574,3.0,2437.3,2437.2,35.8244]
[1728224521586,3.28218,2437.4,2437.2,35.0]
[1728224521920,3.28218,2437.4,2437.3,6.06413274]
[1728224522099,3.28218,2437.4,2437.3,2.40597522]
[1728224522284,3.28218,2437.4,2437.3,37.40597522]
[1728224523810,6.28218,2437.4,2437.3,37.40597522]
[1728224524171,3.28218,2437.4,2437.3,37.40597522]
[1728224529884,3.282,2437.6,2437.4,0.8269]
[1728224530078,3.282,2437.6,2437.5,1.58157522]
[1728224530772,3.282,2437.6,2437.5,36.58157522]
[1728224532111,3.28186,2437.7,2437.5,36.58157522]
[1728224532486,3.28186,2437.7,2437.5,1.58157522]
[1728224532683,3.28186,2437.7,2437.5,1.82242274]
[1728224532922,3.28166,2437.8,2437.5,1.82242274]
[1728224532923,3.28166,2437.8,2437.6,35.8269]
[1728224533127,6.28152,2437.9,2437.6,35.8269]
[1728224533418,3.28166,2437.8,2437.6,35.8269]
[1728224533620,3.28166,2437.8,2437.7,3.76493227]
[1728224533920,3.28145,2438.0,2437.8,0.8269]
[1728224534082,3.28151,2437.9,2437.8,0.8269]
[1728224534288,3.28151,2437.9,2437.8,35.8269]
[1728224534923,3.28151,2437.9,2437.8,35.0]
[1728224542643,8.66928522,2437.9,2437.8,35.0]
[1728224543542,7.08771,2437.9,2437.8,35.0]
[1728224551279,3.28225,2437.4,2437.2,0.8041]
[1728224551465,3.28225,2437.4,2437.2,1.04266752]
[1728224551671,3.28225,2437.4,2437.3,35.0]
[1728224553645,3.28202,2437.6,2437.4,0.7557]
[1728224554278,6.56403,2437.6,2437.4,0.7557]
[1728224554644,6.56403,2437.6,2437.5,35.0]
[1728224554962,6.56403,2437.6,2437.5,38.57557]
[1728224555144,3.28201,2437.6,2437.5,38.57557]
[1728224564096,3.28179,2437.7,2437.5,38.57557]
[1728224564288,6.56369,2437.7,2437.5,3.57557]
[1728224564483,6.56369,2437.7,2437.4,0.7557]
[1728224564692,6.56369,2437.7,2437.6,35.0]
[1728224566096,3.28179,2437.7,2437.6,35.0]
[1728224574676,3.28166,2437.8,2437.6,37.75670539]
[1728224574880,3.28166,2437.8,2437.7,3.77567054]
[1728224575511,3.28166,2437.8,2437.6,0.753]
[1728224576073,3.28166,2437.8,2437.7,35.0]
[1728224577618,3.08166,2437.8,2437.7,35.0]
[1728224611474,3.28153,2437.9,2437.7,35.0]
[1728224611684,3.28153,2437.9,2437.8,0.8089]
[1728224611971,3.28153,2437.9,2437.8,4.54794752]
[1728224612275,3.28153,2437.9,2437.8,35.8089]
[1728224613047,3.28138,2438.0,2437.8,35.8089]
[1728224613449,3.28138,2438.0,2437.8,0.8089]
[1728224613840,3.28138,2438.0,2437.9,35.0]
[1728224614553,3.28138,2438.0,2437.9,37.46657583]
[1728224615252,3.28138,2438.0,2437.9,35.0]
[1728224615842,4.07588,2438.0,2437.9,35.0]
[1728224618971,3.28138,2438.0,2437.9,35.0]
[1728224621384,3.28138,2438.0,2437.9,35.7677]
[1728224625320,3.28138,2438.0,2437.9,35.0]
[1728224645236,3.28138,2438.0,2437.9,38.57677]
[1728224646642,3.28138,2438.0,2437.9,35.0]
[1728224653954,7.09518,2438.0,2437.9,35.0]
[1728224656012,6.28138,2438.0,2437.9,35.0]
[1728224656236,6.28138,2438.0,2437.9,35.8034]
[1728224657155,6.28138,2438.0,2437.9,35.0]
[1728224659851,3.28138,2438.0,2437.9,35.0]
[1728224660059,3.28138,2438.0,2437.9,38.58034]
[1728224660947,3.28126,2438.1,2437.9,38.58034]
[1728224661262,3.28126,2438.1,2438.0,0.7768]
[1728224661554,8.00326333,2438.4,2438.0,35.80462085]
[1728224661770,3.28088,2438.4,2438.1,5.6972261]
[1728224662280,5.82164333,2438.6,2438.1,1.63045649]
[1728224662281,4.09926,2438.6,2438.1,1.63045649]
[1728224662485,4.09926,2438.6,2438.3,35.0]
[1728224662692,3.28077,2438.5,2438.3,35.0]
[1728224662989,3.28083,2438.4,2438.1,1.58157522]
[1728224663301,5.00290333,2438.7,2438.3,1.58157522]
[1728224663590,3.28043,2438.7,2438.6,35.0]
[1728224663883,3.28038,2438.8,2438.6,35.0]
[1728224664093,3.28038,2438.8,2438.6,37.07459301]
[1728224664251,3.27992,2439.1,2438.8,0.7768]
[1728224664453,3.28003,2439.0,2438.9,1.58157522]
[1728224664647,3.28003,2439.0,2438.9,35.0]
[1728224664888,3.28003,2439.0,2438.9,38.73583752]
[1728224665091,3.4007867,2439.2,2438.9,40.31741274]
[1728224665376,0.1209667,2439.2,2438.9,40.31741274]
[1728224665582,0.1209667,2439.2,2438.9,5.31741274]
[1728224665895,0.1209667,2439.2,2438.9,1.58157522]
[1728224666050,0.1209667,2439.2,2439.1,35.0]
[1728224667957,3.4007267,2439.2,2439.1,35.0]
[1728224668860,6.4007267,2439.2,2439.1,35.0]
[1728224674177,7.98230192,2439.2,2439.1,35.0]
[1728224675173,8.53230192,2439.2,2439.1,35.0]
[1728224678905,9.33700192,2439.2,2439.1,35.0]
[1728224685602,11.05938525,2439.2,2439.1,35.0]
[1728224686015,9.33700192,2439.2,2439.1,35.0]
[1728224687916,0.55,2439.1,2438.3,0.827]
[1728224688213,3.28083,2438.4,2438.3,0.827]
[1728224688555,3.28083,2438.4,2438.3,35.827]
[1728224688719,3.28083,2438.4,2438.3,36.66025148]
[1728224689223,3.28083,2438.4,2438.3,35.827]
[1728224691910,3.28072,2438.5,2438.3,35.827]
[1728224692097,3.28072,2438.5,2438.4,0.827]
[1728224692794,3.28072,2438.5,2438.4,35.827]
[1728224694499,3.28038,2438.8,2438.5,0.827]
[1728224694807,6.56079,2438.8,2438.6,0.827]
[1728224695183,3.28038,2438.8,2438.7,35.0]
[1728224695388,3.28038,2438.8,2438.7,35.827]
[1728224695588,3.28038,2438.8,2438.7,39.4097]
[1728224700730,3.28018,2438.9,2438.7,39.4097]
[1728224701041,3.28018,2438.9,2438.8,0.814]
[1728224701503,3.28018,2438.9,2438.8,35.814]
[1728224703525,3.28018,2438.9,2438.8,35.82202139]
[1728224703754,3.28018,2438.9,2438.8,39.56238105]
[1728224707964,3.28018,2438.9,2438.8,35.00802139]
[1728224717205,3.28003,2439.0,2438.8,35.82202139]
[1728224717594,3.28003,2439.0,2438.8,0.82202139]
[1728224717995,3.28016,2438.9,2438.8,0.82202139]
[1728224718227,3.28003,2439.0,2438.8,0.82202139]
[1728224718628,3.28003,2439.0,2438.9,35.0]
[1728224720226,6.28003,2439.0,2438.9,35.0]
[1728224731388,3.28003,2439.0,2438.9,35.0]
[1728224731613,6.5599,2439.1,2438.9,38.58150214]
[1728224731823,6.5599,2439.1,2439.0,0.00802139]
[1728224732022,6.5599,2439.1,2439.0,0.47528164]
[1728224732318,6.5599,2439.1,2439.0,0.00802139]
[1728224735617,9.5599,2439.1,2439.0,0.00802139]
[1728224754269,11.96067522,2439.1,2439.0,0.00802139]
[1728224754470,13.68305855,2439.1,2439.0,0.00802139]
[1728224755531,14.23305855,2439.1,2439.0,0.00802139]
[1728224756419,14.66203028,2439.1,2439.0,0.00802139]
[1728224756587,12.51067522,2439.1,2439.0,0.00802139]
[1728224756963,14.23189213,2439.1,2439.0,0.00802139]
[1728224757902,14.23189213,2439.1,2439.0,35.00802139]
[1728224760115,14.66210903,2439.1,2439.0,35.00802139]
[1728224760282,42.74487622,2439.1,2439.0,35.00802139]
[1728224760969,12.51067522,2439.1,2439.0,35.00802139]
[1728224761170,14.66203599,2439.1,2439.0,35.00802139]
[1728224761566,12.51067522,2439.1,2439.0,35.00802139]
[1728224762305,13.15279008,2439.1,2439.0,35.00802139]
[1728224764010,13.15279008,2439.1,2439.0,0.00802139]
[1728224764390,13.15279008,2439.1,2439.0,35.00802139]
[1728224765524,15.30342359,2439.1,2439.0,35.00802139]
[1728224766175,15.30331789,2439.1,2439.0,35.00802139]
[1728224766373,15.30329776,2439.1,2439.0,35.00802139]
[1728224766825,13.15279008,2439.1,2439.0,35.00802139]
[1728224767109,15.30327364,2439.1,2439.0,35.00802139]
[1728224767727,13.15279008,2439.1,2439.0,35.00802139]
[1728224768032,15.30313859,2439.1,2439.0,35.00802139]
[1728224768231,44.36473859,2439.1,2439.0,35.00802139]
[1728224768393,35.50742208,2439.1,2439.0,35.00802139]
[1728224770890,20.09662608,2439.1,2439.0,35.00802139]
[1728224771093,19.86662608,2439.1,2439.0,35.00802139]
[1728224773891,20.35662952,2439.1,2439.0,0.00802139]
[1728224774321,20.35662952,2439.1,2439.0,35.00802139]
[1728224774630,22.93644782,2439.1,2439.0,35.00802139]
[1728224774829,20.35662952,2439.1,2439.0,35.00802139]
[1728224775223,20.35662952,2439.1,2439.0,0.00802139]
[1728224775634,20.78302553,2439.1,2439.0,0.00802139]
[1728224776657,20.35662952,2439.1,2439.0,0.00802139]
[1728224777221,21.35287856,2439.1,2439.0,0.00802139]
[1728224777458,19.59724078,2439.1,2439.0,0.00802139]
[1728224777819,19.59724078,2439.1,2439.0,35.00802139]
[1728224779362,17.01941652,2439.1,2439.0,35.00802139]
[1728224779562,19.59724078,2439.1,2439.0,35.00802139]
[1728224780363,17.01941652,2439.1,2439.0,35.00802139]
[1728224780662,19.59724078,2439.1,2439.0,35.00802139]
[1728224781223,13.52941308,2439.1,2439.0,35.00699837]
[1728224781439,13.52941308,2439.1,2439.0,0.00699837]
[1728224781440,12.55982808,2439.1,2439.0,0.00699837]
[1728224781952,12.55982808,2439.1,2439.0,35.00699837]
[1728224782553,10.97825286,2439.1,2439.0,35.00699837]
[1728224782761,15.55982808,2439.1,2439.0,35.00699837]
[1728224785274,15.55982808,2439.1,2439.0,0.00699837]
[1728224785773,12.33359008,2439.1,2439.0,35.00699837]
[1728224785954,14.48145896,2439.1,2439.0,35.00699837]
[1728224788131,14.48165624,2439.1,2439.0,35.00699837]
[1728224790579,12.33359008,2439.1,2439.0,35.00699837]
[1728224790870,14.48209906,2439.1,2439.0,35.00699837]
[1728224792669,14.48247135,2439.1,2439.0,35.00699837]
[1728224793937,13.84035649,2439.1,2439.0,35.00699837]
[1728224794674,13.84035649,2439.1,2439.0,0.00699837]
[1728224794838,11.69147522,2439.1,2439.0,0.00699837]
[1728224795033,13.84085762,2439.1,2439.0,0.00699837]
[1728224795247,13.84081651,2439.1,2439.0,35.00699837]
[1728224795546,11.69147522,2439.1,2439.0,35.00699837]
[1728224796073,13.84108109,2439.1,2439.0,35.00699837]
[1728224796569,11.69147522,2439.1,2439.0,35.00699837]
[1728224796744,13.84134965,2439.1,2439.0,35.00699837]
[1728224797335,11.69147522,2439.1,2439.0,35.00699837]
[1728224797753,11.69147522,2439.1,2439.0,35.77309837]
[1728224799155,7.1099,2439.1,2439.0,35.77309837]
[1728224799341,8.830198,2439.1,2439.0,35.77309837]
[1728224799742,8.8304911,2439.1,2439.0,35.77309837]
[1728224800443,11.8304911,2439.1,2439.0,35.77309837]
[1728224801743,11.2804911,2439.1,2439.0,35.77309837]
[1728224802382,9.5599,2439.1,2439.0,39.35040821]
[1728224802590,6.5599,2439.1,2439.0,39.35040821]
[1728224802885,3.27991,2439.1,2439.0,39.35040821]
[1728224810149,4.9996111,2439.8,2439.3,0.7847]
[1728224810352,3.27902,2439.8,2439.6,0.7847]
[1728224810847,3.27902,2439.8,2439.7,35.7847]
[1728224811580,6.27884,2439.9,2439.7,35.0]
[1728224811887,6.27884,2439.9,2439.8,4.36317]
[1728224812056,3.0,2439.9,2439.8,4.36317]
[1728224812384,3.27849,2440.2,2439.9,0.7847]
[1728224812585,3.2781,2440.5,2440.2,0.7847]
[1728224812813,3.2781,2440.5,2440.4,0.0072]
[1728224813017,3.2781,2440.5,2440.4,35.7919]
[1728224813018,23.0281,2440.5,2440.4,35.7919]
[1728224813537,19.75,2440.5,2440.4,37.21111431]
[1728224813684,19.75,2440.5,2440.4,37.6895741]
[1728224813878,6.55514,2440.9,2440.5,0.7847]
[1728224814082,3.27757,2440.9,2440.8,0.0072]
[1728224814279,3.27757,2440.9,2440.8,0.7919]
[1728224814589,3.27725,2441.1,2440.8,35.0072]
[1728224814783,6.27725,2441.1,2441.0,0.7919]
[1728224815891,3.27725,2441.1,2441.0,0.7919]
[1728224817100,3.22725,2441.1,2441.0,0.7919]
[1728224817282,3.22725,2441.1,2441.0,0.0072]
[1728224818292,3.27747,2440.9,2440.8,35.0]
[1728224818486,23.02027,2440.9,2440.8,38.57847]
[1728224818690,3.27747,2440.9,2440.8,38.57847]
[1728224820025,3.27735,2441.0,2440.9,0.7603]
[1728224820177,3.27735,2441.0,2440.9,4.694177]
[1728224821382,3.27735,2441.0,2440.9,4.702177]
[1728224822183,3.27714,2441.2,2440.9,3.941877]
[1728224822529,1.04508274,2441.3,2441.2,0.7603]
[1728224822980,1.04508274,2441.3,2441.2,1.17672801]
[1728224823174,1.04508274,2441.3,2441.2,35.7603]
[1728224823379,4.32202274,2441.3,2441.2,35.7603]
[1728224823620,4.32202274,2441.3,2441.2,35.7683]
[1728224831281,1.04508274,2441.3,2441.2,35.7683]
[1728224832182,4.32202274,2441.3,2441.2,35.7683]
[1728224834322,4.32202274,2441.3,2441.2,39.34513]
[1728224835417,4.32202274,2441.3,2441.2,35.7683]
[1728224835592,4.32202274,2441.3,2441.2,35.008]
[1728224836786,4.32202274,2441.3,2441.2,35.7683]
[1728224837216,4.32202274,2441.3,2441.2,35.008]
[1728224837923,4.32202274,2441.3,2441.2,34.808]
[1728224839384,4.32202274,2441.3,2441.2,35.28586092]
[1728224840198,4.32202274,2441.3,2441.2,36.05165923]
[1728224840987,4.32202274,2441.3,2441.2,34.808]
[1728224841229,4.32202274,2441.3,2441.2,36.05248282]
[1728224841390,4.32202274,2441.3,2441.2,37.01078235]
[1728224841728,4.32202274,2441.3,2441.2,36.81078235]
[1728224841899,4.32202274,2441.3,2441.2,35.85248282]
[1728224842083,4.32202274,2441.3,2441.2,36.81079475]
[1728224844418,4.32202274,2441.3,2441.2,36.81685888]
[1728224845411,1.04508274,2441.3,2441.2,41.06313596]
[1728224845722,1.04508274,2441.3,2441.2,41.69826815]
[1728224846029,1.04508274,2441.3,2441.2,41.06313596]
[1728224846030,4.32202274,2441.3,2441.2,41.06313596]
[1728224846198,1.04508274,2441.3,2441.2,41.06313596]
[1728224846404,1.04508274,2441.3,2441.2,37.64805888]
[1728224846800,4.32202274,2441.3,2441.2,37.64805888]
[1728224847527,4.32202274,2441.3,2441.2,37.64832394]
[1728224847906,4.32202274,2441.3,2441.2,37.16807961]
[1728224848205,4.32202274,2441.3,2441.2,37.64835347]
[1728224849135,1.04508274,2441.3,2441.2,37.9602851]
[1728224849349,1.04508274,2441.3,2441.2,38.66569762]
[1728224850634,1.04508274,2441.3,2441.2,37.48003435]
[1728224850841,1.04508274,2441.3,2441.2,2.88003435]
[1728224851146,1.04508274,2441.3,2441.2,1.98519001]
[1728224851914,1.04508274,2441.3,2441.2,36.98519001]
[1728224854119,1.04508274,2441.3,2441.2,35.8392]
[1728224854653,1.04508274,2441.3,2441.2,36.98589195]
[1728224855406,1.04508274,2441.3,2441.2,36.28023536]
[1728224855607,1.04508274,2441.3,2441.2,40.06498942]
[1728224856040,4.32202274,2441.3,2441.2,36.28023536]
[1728224856506,1.04508274,2441.3,2441.2,36.28023536]
[1728224857337,4.32202274,2441.3,2441.2,36.28023536]
[1728224857930,4.32202274,2441.3,2441.2,35.8392]
[1728224858261,4.32202274,2441.3,2441.2,35.43532927]
[1728224858943,4.32202274,2441.3,2441.2,35.86545825]
[1728224859141,1.04508274,2441.3,2441.2,35.86545825]
[1728224859350,1.04508274,2441.3,2441.2,39.53512408]
[1728224860129,4.32202274,2441.3,2441.2,35.86545825]
[1728224860461,1.04508274,2441.3,2441.2,35.86545825]
[1728224862530,1.04508274,2441.3,2441.2,0.85745825]
[1728224863634,1.04508274,2441.3,2441.2,35.85745825]
[1728224864179,1.04508274,2441.3,2441.2,39.52643527]
[1728224865044,4.32202274,2441.3,2441.2,0.85756944]
[1728224865268,4.32202274,2441.3,2441.2,0.85775151]
[1728224865656,4.32202274,2441.3,2441.2,0.43060958]
[1728224865880,4.32202274,2441.3,2441.2,0.86577002]
[1728224866079,4.32202274,2441.3,2441.2,35.86577002]
[1728224866293,4.32202274,2441.3,2441.2,35.008]
[1728224866985,1.04508274,2441.3,2441.2,35.008]
[1728224867405,4.32202274,2441.3,2441.2,35.008]
[1728224867633,1.04508274,2441.3,2441.2,35.008]
[1728224867888,1.04508274,2441.3,2441.2,35.7788]
[1728224868253,1.04508274,2441.3,2441.2,0.7708]
[1728224868456,1.04508274,2441.3,2441.2,1.19796189]
[1728224868658,1.04508274,2441.3,2441.2,2.03595548]
[1728224869360,1.04508274,2441.3,2441.2,37.03595548]
[1728224870891,1.04508274,2441.3,2441.2,36.94395548]
[1728224874189,1.04508274,2441.3,2441.2,36.7940232]
[1728224877124,1.04508274,2441.3,2441.2,36.6940232]
[1728224877430,1.04508274,2441.3,2441.2,36.26679359]
[1728224877736,1.04508274,2441.3,2441.2,36.69411577]
[1728224879125,1.04508274,2441.3,2441.2,40.30837592]
[1728224880219,1.04508274,2441.3,2441.2,42.30835734]
[1728224880427,1.04508274,2441.3,2441.2,42.05835734]
[1728224880640,1.04508274,2441.3,2441.2,41.72118577]
[1728224880805,1.04508274,2441.3,2441.2,42.05834419]
[1728224881441,0.1209667,2441.7,2441.2,38.61047419]
[1728224881644,0.1209667,2441.7,2441.6,4.84383526]
[1728224881803,0.1209667,2441.7,2441.6,7.69820112]
[1728224882004,0.1209667,2441.7,2441.6,42.61631586]
[1728224883268,0.1209667,2441.7,2441.6,45.18899368]
[1728224883543,0.1209667,2441.7,2441.6,50.50799806]
[1728224886131,0.1209667,2441.7,2441.6,48.60439232]
[1728224886343,0.1209667,2441.7,2441.6,42.32786232]
[1728224886565,0.1209667,2441.7,2441.6,36.57530526]
[1728224887039,0.1209667,2441.7,2441.6,35.008]
[1728224887255,0.1209667,2441.7,2441.6,36.57530526]
[1728224888506,0.1209667,2441.7,2441.6,38.40053253]
[1728224889510,0.1209667,2441.7,2441.6,41.67706253]
[1728224889711,0.1209667,2441.7,2441.6,46.19713462]
[1728224889943,0.1209667,2441.7,2441.6,48.19713462]